bitfinex-derivatives/quotes_ETHF0:USTF0_20220106
["timestamp","ask_amount","ask_price","bid_price","bid_amount"]
[1641428502122,12.09,3519.7,3518.3,2.00479]
[1641428502320,1.5,3519.2,3518.4,0.96369636]
[1641428502523,12.09,3519.7,3518.5,0.132394]
[1641428502922,1.5,3519.6,3518.6,0.96369636]
[1641428503123,12.09,3519.7,3518.6,0.96369636]
[1641428503323,1.5,3519.6,3518.6,0.96369636]
[1641428503523,12.09,3519.7,3518.4,0.96369636]
[1641428503723,1.5,3519.3,3518.4,0.96369636]
[1641428504026,1.5,3519.5,3518.5,0.132394]
[1641428504224,12.09,3519.7,3518.5,1.09611321]
[1641428504426,1.5,3518.6,3518.4,0.96371921]
[1641428504724,14.42989162,3519.7,3517.4,2.13454303]
[1641428504725,0.362385,3518.5,3517.4,2.13454303]
[1641428504925,74.30395524,3519.7,3517.4,2.13454303]
[1641428505224,1.5,3519.2,3517.5,0.96382472]
[1641428505725,12.09,3519.1,3517.5,0.96382472]
[1641428505928,12.09,3518.8,3518.1,2.00479]
[1641428506125,12.222394,3518.8,3518.1,2.00479]
[1641428506425,1.5,3518.4,3518.2,0.132394]
[1641428506628,0.229991,3518.3,3518.1,2.00479]
[1641428506827,1.5,3518.2,3518.1,2.00479]
[1641428507027,1.5,3518.2,3516.9,2.30528885]
[1641428507228,1.5,3517.9,3516.9,2.30528885]
[1641428507426,1.5,3517.9,3517.1,0.9639601]
[1641428507629,1.42078351,3518.5,3517.2,0.132394]
[1641428507828,14.09479,3517.9,3517.2,0.9639601]
[1641428508031,15.59479,3517.9,3517.1,2.9687501]
[1641428508229,0.132394,3517.8,3517.1,2.00479]
[1641428508430,0.132394,3517.8,3517.2,0.96403805]
[1641428509134,14.09479,3517.9,3517.3,0.132394]
[1641428509329,12.09,3517.9,3517.3,0.132394]
[1641428509530,12.09,3517.9,3517.4,0.96403805]
[1641428509729,12.09,3517.9,3517.3,0.132394]
[1641428509730,12.09,3517.9,3517.1,2.00479]
[1641428509930,12.09,3517.9,3517.8,2.00479]
[1641428510131,13.819991,3517.9,3517.8,2.00479]
[1641428510339,12.319991,3517.9,3517.8,2.00479]
[1641428510540,12.319991,3517.9,3517.1,2.00479]
[1641428510737,12.319991,3517.9,3517.2,0.132394]
[1641428511540,12.09,3517.9,3517.2,0.132394]
[1641428511741,1.5,3517.8,3517.2,0.132394]
[1641428511941,2.00479,3517.9,3517.2,0.132394]
[1641428512139,0.91945524,3518.0,3517.2,0.132394]
[1641428512443,2.41945524,3518.0,3517.3,0.96396362]
[1641428512639,1.5,3518.0,3517.4,0.132394]
[1641428513238,1.5,3517.7,3517.1,2.00479]
[1641428513438,1.5,3517.7,3517.1,2.137184]
[1641428513639,1.632394,3517.7,3517.2,0.96405074]
[1641428514041,1.632394,3517.7,3517.6,2.00479]
[1641428514238,1.862385,3517.7,3517.1,2.137184]
[1641428514440,1.632394,3517.7,3517.1,2.137184]
[1641428515439,1.632394,3517.7,3517.2,0.96410248]
[1641428516040,0.132394,3517.7,3517.2,0.96410248]
[1641428516440,1.5,3517.4,3517.2,0.96410248]
[1641428516641,0.362385,3517.3,3517.2,0.96410248]
[1641428516842,0.362385,3517.3,3517.1,2.00479]
[1641428517042,1.5,3517.2,3517.1,2.00479]
[1641428517240,0.362385,3517.3,3517.1,2.00479]
[1641428518740,0.132394,3517.3,3517.1,2.00479]
[1641428519340,0.132394,3517.3,3517.2,0.9641605]
[1641428519543,0.362385,3517.3,3517.2,0.9641605]
[1641428520143,0.229991,3517.3,3517.2,0.9641605]
[1641428520347,13.00945524,3517.9,3517.2,1.93926084]
[1641428520543,1.22594032,3518.2,3517.2,1.93926084]
[1641428520746,1.22594032,3518.2,3517.3,0.9641605]
[1641428520945,1.22594032,3518.2,3517.4,0.132394]
[1641428521144,1.22594032,3518.2,3517.6,1.42033148]
[1641428521343,2.00479,3518.5,3517.2,2.39543181]
[1641428521344,1.22594032,3518.4,3517.7,0.132394]
[1641428521545,1.22594032,3518.4,3517.7,0.9641605]
[1641428522047,4.032e-05,3518.4,3518.0,2.00479]
[1641428522446,4.032e-05,3518.4,3518.1,0.132394]
[1641428522647,4.032e-05,3519.2,3518.1,1.0965545]
[1641428523046,4.032e-05,3519.2,3518.2,0.9641605]
[1641428523447,1.5,3518.3,3518.2,2.0974857]
[1641428523649,1.729991,3518.3,3518.2,1.1333252]
[1641428523849,1.729991,3518.3,3518.0,0.132394]
[1641428524347,0.229991,3518.3,3518.0,0.132394]
[1641428524552,3.50479,3518.6,3518.0,0.132394]
[1641428524850,3.50479,3518.6,3518.1,0.96387278]
[1641428525049,2.00479,3518.6,3518.2,0.132394]
[1641428525348,2.00479,3518.6,3518.2,1.1887631]
[1641428525549,2.00479,3518.6,3518.3,0.96387278]
[1641428525750,1.5,3518.4,3518.3,0.96387278]
[1641428525948,1.5,3518.4,3518.3,1.09626678]
[1641428526149,2.00479,3518.6,3518.3,0.132394]
[1641428526749,0.229991,3518.5,3518.3,0.132394]
[1641428527251,14.09479,3518.9,3518.3,0.132394]
[1641428527449,0.60228627,3518.5,3518.3,0.132394]
[1641428527849,0.229991,3518.4,3518.3,0.132394]
[1641428528149,0.60228627,3518.5,3518.3,2.137184]
[1641428528752,0.83227727,3518.4,3518.3,2.137184]
[1641428528952,0.60228627,3518.4,3518.3,2.137184]
[1641428529855,0.83227727,3518.4,3518.3,2.137184]
[1641428530052,0.60228627,3518.4,3518.3,2.137184]
[1641428530854,0.83227727,3518.4,3518.3,2.137184]
[1641428531054,0.60228627,3518.4,3518.3,2.137184]
[1641428531458,1.83891048,3518.5,3518.3,3.10098926]
[1641428531856,1.83891048,3518.5,3518.4,0.96380526]
[1641428532155,3.06498273,3519.0,3518.4,0.96380526]
[1641428532356,3.06498273,3519.0,3518.5,0.132394]
[1641428532756,3.06498273,3519.0,3518.6,0.96380526]
[1641428533058,1.85451542,3519.1,3518.7,0.132394]
[1641428533455,1.85451542,3519.1,3518.8,0.96380526]
[1641428533655,1.85451542,3519.1,3518.9,0.89708073]
[1641428534055,1.85451542,3519.1,3519.0,2.00479]
[1641428534257,3.06498273,3519.6,3519.0,2.00479]
[1641428534455,12.09,3520.2,3519.0,2.00479]
[1641428534456,3.06498273,3519.9,3519.1,1.55209231]
[1641428534857,3.06498273,3519.9,3519.2,0.96359952]
[1641428535055,3.06498273,3519.9,3519.3,0.132394]
[1641428535256,3.06498273,3519.9,3519.3,4.678429]
[1641428535454,3.06498273,3519.9,3519.5,1.41954716]
[1641428535656,3.06498273,3519.9,3519.6,1.02002885]
[1641428535955,3.06498273,3519.9,3519.8,4.00958]
[1641428536155,3.06498273,3520.2,3519.8,4.00958]
[1641428536556,3.06498273,3520.2,3519.9,4.677848]
[1641428537156,3.06498273,3520.2,3519.9,0.132394]
[1641428537157,1.5,3520.0,3519.9,0.132394]
[1641428537359,1.5,3520.0,3519.3,1.2846449]
[1641428537656,1.5,3519.6,3519.3,1.2846449]
[1641428537856,1.5,3519.6,3519.4,0.132394]
[1641428538056,0.229991,3519.5,3519.4,0.132394]
[1641428538856,0.229991,3519.5,3519.1,2.00479]
[1641428538857,12.319991,3519.5,3519.1,2.00479]
[1641428539055,1.5,3519.2,3519.1,2.00479]
[1641428539256,1.729991,3519.2,3519.1,2.00479]
[1641428539457,12.09,3519.1,3518.1,1.2846449]
[1641428539656,1.5,3518.2,3518.1,1.2846449]
[1641428539860,15.222394,3518.2,3518.1,1.2846449]
[1641428540058,15.222394,3518.2,3517.7,1.28107733]
[1641428540059,19.461965,3518.2,3517.7,1.28107733]
[1641428540257,15.09,3517.8,3517.7,1.28107733]
[1641428540558,13.59,3517.8,3517.7,1.28107733]
[1641428540758,0.132394,3518.0,3517.7,1.28107733]
[1641428540957,11.90184969,3521.6,3517.7,1.28107733]
[1641428541161,1.5,3518.8,3517.7,1.28107733]
[1641428541361,1.5,3519.2,3517.8,0.96387217]
[1641428541759,1.5,3519.3,3517.8,0.96387217]
[1641428541960,1.8400891,3518.3,3517.6,0.96387217]
[1641428542159,1.8400891,3518.3,3517.9,0.96387217]
[1641428542459,1.8400891,3518.3,3518.0,0.96387217]
[1641428542662,1.8400891,3518.3,3518.1,0.132394]
[1641428543260,1.8400891,3518.3,3518.2,1.26864472]
[1641428543460,0.92139959,3518.4,3518.2,1.26864472]
[1641428543660,0.92139959,3518.4,3518.3,0.132394]
[1641428544063,0.92139959,3518.4,3518.3,4.141974]
[1641428544764,12.09,3519.1,3518.3,4.141974]
[1641428544765,0.92139959,3518.5,3518.3,4.141974]
[1641428544962,0.8030315,3519.1,3518.3,9.7866648]
[1641428545163,3.15e-05,3519.1,3518.3,9.7866648]
[1641428545363,3.15e-05,3519.1,3518.8,1.64446336]
[1641428545762,3.15e-05,3519.1,3518.9,0.132394]
[1641428545966,3.15e-05,3519.1,3519.0,0.86154002]
[1641428546162,5.36844853,3519.8,3519.0,2.86633002]
[1641428546163,1.8401206,3519.6,3519.0,2.86633002]
[1641428546763,1.9725146,3519.6,3519.0,2.86633002]
[1641428546964,1.5,3519.1,3519.0,2.86633002]
[1641428547167,1.729991,3519.1,3519.0,2.00479]
[1641428547363,1.862385,3519.1,3519.0,2.00479]
[1641428549467,1.632394,3519.1,3519.0,2.00479]
[1641428549670,1.862385,3519.1,3519.0,2.00479]
[1641428551070,1.729991,3519.1,3519.0,2.00479]
[1641428551272,1.5,3519.1,3519.0,2.00479]
[1641428551870,1.8400891,3519.3,3519.0,2.00479]
[1641428552169,1.8400891,3519.3,3519.1,0.132394]
[1641428552772,1.8400891,3519.4,3519.1,0.132394]
[1641428552970,1.8400891,3519.4,3519.2,0.96360077]
[1641428553169,1.8400891,3519.4,3519.3,0.132394]
[1641428553771,1.23026137,3519.5,3519.3,0.132394]
[1641428554770,1.729991,3519.4,3519.0,2.00479]
[1641428554971,1.5,3519.1,3519.0,2.00479]
[1641428555671,1.862385,3519.1,3519.0,2.00479]
[1641428557978,2.3034658,3519.2,3519.0,2.00479]
[1641428558275,2.3034658,3519.2,3518.9,1.39268083]
[1641428558276,0.229991,3519.1,3518.9,1.39268083]
[1641428558676,0.132394,3519.0,3518.9,1.39268083]
[1641428559478,2.3034658,3519.2,3518.9,1.39268083]
[1641428559678,2.3034658,3519.4,3518.9,1.39268083]
[1641428559880,1.84947229,3519.1,3518.9,1.39268083]
[1641428560078,1.84947229,3519.1,3519.0,0.96367589]
[1641428560678,1.84947229,3519.1,3519.0,1.09606989]
[1641428560879,1.84947229,3519.3,3519.0,1.09606989]
[1641428561280,1.84947229,3519.3,3519.1,0.96367589]
[1641428561480,1.84947229,3519.3,3519.2,0.132394]
[1641428561883,1.84947229,3519.3,3519.2,1.09606989]
[1641428562081,1.84947229,3519.3,3519.2,3.10085989]
[1641428562482,3.06498273,3519.9,3519.2,3.10085989]
[1641428562683,3.06498273,3519.9,3519.4,4.0]
[1641428562882,3.85785811,3520.3,3519.5,0.132394]
[1641428563084,3.08631683,3520.0,3519.5,0.132394]
[1641428563282,3.08631683,3520.0,3519.9,1.41940411]
[1641428563482,3.08631683,3520.0,3519.9,0.132394]
[1641428563682,3.08631683,3520.0,3519.9,0.92843179]
[1641428564084,3.85785811,3520.3,3519.9,0.92843179]
[1641428564285,3.85785811,3520.3,3519.9,2.93322179]
[1641428564484,1.5,3520.2,3519.9,2.93322179]
[1641428564885,1.5,3520.5,3519.9,2.93322179]
[1641428565085,1.5,3520.2,3519.9,2.93322179]
[1641428565894,1.5,3520.1,3519.9,2.93322179]
[1641428566287,1.5,3520.1,3520.0,2.00479]
[1641428566696,12.09,3520.7,3520.0,2.00479]
[1641428566894,1.5,3520.2,3520.0,2.137184]
[1641428567097,0.229991,3520.1,3520.0,2.137184]
[1641428567297,0.229991,3520.1,3520.0,2.00479]
[1641428567997,0.229991,3520.1,3519.9,0.79603779]
[1641428568397,1.5,3520.0,3519.9,0.79603779]
[1641428569497,2.10209099,3520.0,3519.9,0.79603779]
[1641428570797,2.10209099,3520.0,3519.3,0.96332509]
[1641428570798,14.19209099,3520.0,3519.3,0.96332509]
[1641428570999,1.5,3519.4,3519.3,0.96332509]
[1641428571196,1.729991,3519.4,3519.3,0.96332509]
[1641428571399,1.729991,3519.4,3519.3,2.509e-05]
[1641428571600,1.729991,3519.4,3518.3,2.40751699]
[1641428571798,1.5,3518.9,3518.3,2.40751699]
[1641428571997,1.729991,3518.9,3518.6,0.132394]
[1641428572998,0.229991,3518.9,3518.5,2.00479]
[1641428573198,1.5,3518.6,3518.5,2.00479]
[1641428573400,1.862385,3518.6,3518.5,2.00479]
[1641428573801,12.09,3519.2,3518.5,2.00479]
[1641428574001,0.132394,3519.1,3518.5,2.00479]
[1641428574200,1.5,3518.6,3518.5,2.00479]
[1641428574401,1.729991,3518.6,3518.5,2.00479]
[1641428574602,1.5,3518.6,3518.5,2.00479]
[1641428575702,14.32448499,3518.6,3518.5,2.00479]
[1641428576302,14.55447599,3518.6,3518.2,2.00479]
[1641428576502,1.5,3518.3,3517.9,0.97657416]
[1641428576903,12.82448499,3518.6,3518.0,0.96387978]
[1641428577103,1.5,3518.1,3518.0,0.96387978]
[1641428577302,1.729991,3518.1,3518.0,0.96387978]
[1641428578102,1.729991,3518.1,3518.0,1.28043537]
[1641428578303,0.60209099,3518.2,3518.0,1.28043537]
[1641428578702,0.60209099,3518.2,3518.1,0.96387978]
[1641428578902,3.98702611,3519.6,3518.1,0.96387978]
[1641428579204,2.48702611,3519.6,3518.2,0.132394]
[1641428579504,4.24364392,3519.8,3518.2,0.132394]
[1641428579505,1.5,3519.1,3518.3,0.96387978]
[1641428579703,1.85187658,3519.0,3518.4,0.132394]
[1641428579903,1.85187658,3519.0,3518.5,1.41996845]
[1641428580203,0.132394,3518.9,3518.5,0.96387978]
[1641428580404,0.132394,3518.9,3518.8,2.00479]
[1641428581404,1.862385,3518.9,3518.8,2.00479]
[1641428581609,1.862385,3518.9,3518.5,1.29195008]
[1641428582006,0.362385,3518.9,3518.6,0.96383902]
[1641428582406,12.452385,3518.9,3518.6,0.96383902]
[1641428582606,1.5,3518.7,3518.6,0.96383902]
[1641428582811,1.729991,3518.7,3518.6,0.96383902]
[1641428583006,1.862385,3518.7,3518.4,0.96383902]
[1641428583208,0.362385,3518.7,3518.6,0.96383902]
[1641428583406,1.862385,3518.7,3518.5,0.96383902]
[1641428583609,1.862385,3518.7,3518.6,0.96383902]
[1641428584010,1.862385,3518.7,3518.3,0.96383902]
[1641428584210,0.362385,3518.7,3518.3,0.96383902]
[1641428584409,1.5,3518.4,3518.3,0.96383902]
[1641428584610,1.862385,3518.4,3518.3,0.96383902]
[1641428585814,15.452385,3518.4,3518.0,1.28435484]
[1641428586013,12.09,3518.0,3517.3,2.40751699]
[1641428586216,1.5,3517.6,3517.3,2.40751699]
[1641428586414,1.729991,3517.6,3517.3,2.40751699]
[1641428586614,15.319991,3517.6,3517.3,2.40751699]
[1641428586815,13.952385,3517.6,3517.3,2.40751699]
[1641428587815,1.5,3517.6,3517.2,0.132394]
[1641428588019,4.65957238,3517.9,3517.1,1.40493376]
[1641428588418,4.65957238,3517.9,3517.5,1.42033955]
[1641428588619,2.31919069,3518.2,3517.6,0.85285335]
[1641428588819,2.31919069,3518.2,3517.6,5.40127935]
[1641428589017,1.5,3517.8,3517.7,0.132394]
[1641428589218,1.729991,3517.8,3517.4,4.548555]
[1641428589417,1.729991,3517.8,3517.3,2.00479]
[1641428589418,1.5,3517.8,3517.3,2.00479]
[1641428589818,1.5,3517.8,3517.4,0.7837373]
[1641428590020,1.5,3517.6,3517.4,0.7837373]
[1641428590223,0.229991,3517.5,3517.4,0.7837373]
[1641428590420,2.367175,3517.5,3517.4,0.7837373]
[1641428592323,2.367175,3517.5,3517.4,1.74723445]
[1641428593223,14.457175,3517.5,3517.4,1.74723445]
[1641428593425,14.457175,3517.5,3517.4,0.96349715]
[1641428593826,14.457175,3517.5,3517.3,0.96349715]
[1641428594030,1.5,3517.4,3517.3,0.96349715]
[1641428594926,1.5,3517.4,3517.0,0.96349715]
[1641428594927,3.0,3517.4,3517.0,0.96349715]
[1641428595226,12.09,3517.0,3515.9,2.40751699]
[1641428595428,1.5,3516.0,3515.9,2.40751699]
[1641428595629,15.452385,3516.0,3515.9,1.699e-05]
[1641428595830,15.452385,3516.0,3515.1,4.36890111]
[1641428596130,1.5,3515.5,3515.1,4.36890111]
[1641428596331,13.952385,3515.5,3515.4,3.03972828]
[1641428596532,17.961965,3515.5,3515.4,3.03972828]
[1641428596731,5.739571,3515.5,3515.4,3.03972828]
[1641428597529,5.50958,3515.5,3515.1,4.36890111]
[1641428597731,1.22983286,3516.4,3515.4,0.132394]
[1641428597952,1.5,3516.2,3515.4,0.132394]
[1641428598130,1.5,3516.2,3515.5,0.7605411]
[1641428598431,1.5,3516.2,3515.7,2.00479]
[1641428599035,1.5,3516.2,3515.8,0.132394]
[1641428599632,1.22983286,3516.0,3515.7,1.137184]
[1641428600633,0.60263035,3516.1,3515.7,1.137184]
[1641428601236,1.5,3515.8,3515.7,1.137184]
[1641428601935,0.60263035,3516.1,3515.7,1.137184]
[1641428602233,1.84465643,3516.7,3516.1,2.03702863]
[1641428602432,5.35215766,3517.5,3516.6,2.00479]
[1641428602433,1.5,3517.2,3516.6,2.00479]
[1641428602632,3.85215766,3517.5,3516.6,2.00479]
[1641428602633,5.35215766,3517.5,3516.6,2.00479]
[1641428602836,3.85215766,3517.4,3516.6,2.00479]
[1641428603133,3.08141553,3517.2,3516.7,0.88188552]
[1641428603334,1.5,3516.8,3516.7,0.88188552]
[1641428603533,1.729991,3516.8,3516.7,0.88188552]
[1641428603933,1.862385,3516.8,3516.7,0.88188552]
[1641428604537,3.867175,3516.8,3516.7,0.88188552]
[1641428605836,15.957175,3516.8,3516.7,0.88188552]
[1641428606439,19.461965,3516.8,3516.1,1.14649714]
[1641428606636,1.5,3516.2,3516.1,1.14649714]
[1641428607839,1.729991,3516.2,3516.1,1.14649714]
[1641428608436,1.5,3516.2,3516.1,1.14649714]
[1641428608637,3.50479,3516.2,3516.1,1.14649714]
[1641428609238,3.734781,3516.2,3516.1,1.14649714]
[1641428609442,15.824781,3516.2,3515.6,0.88599511]
[1641428609640,14.457175,3516.2,3515.6,0.88599511]
[1641428610341,1.5,3515.7,3515.6,0.88599511]
[1641428610542,1.729991,3515.7,3515.6,0.88599511]
[1641428611546,1.5,3515.7,3515.6,0.88599511]
[1641428611745,1.729991,3515.7,3515.6,0.88599511]
[1641428611949,13.59,3515.7,3515.6,0.88599511]
[1641428612143,1.5,3515.7,3515.0,0.79670151]
[1641428612344,1.5,3515.5,3515.0,0.79670151]
[1641428612545,1.5,3515.5,3515.1,0.96449282]
[1641428612944,1.5,3515.7,3515.1,0.96449282]
[1641428613146,2.00479,3515.8,3515.1,0.96449282]
[1641428613645,2.00479,3516.2,3515.7,1.42094703]
[1641428613845,1.5,3516.0,3515.7,1.42094703]
[1641428614045,2.00479,3516.2,3515.7,1.32271656]
[1641428614246,1.5,3516.0,3515.7,1.32271656]
[1641428614449,0.229991,3515.9,3515.7,1.32271656]
[1641428614648,1.5,3516.0,3515.8,2.00479]
[1641428614849,1.5,3515.9,3515.8,2.00479]
[1641428615047,1.5,3515.9,3515.7,1.32271656]
[1641428615246,0.229991,3515.8,3515.7,1.32271656]
[1641428615447,1.5,3515.9,3515.7,1.32271656]
[1641428615649,0.132394,3516.0,3515.7,1.32271656]
[1641428615847,2.00479,3516.6,3515.7,1.32271656]
[1641428615848,1.5,3516.1,3515.7,1.32271656]
[1641428616048,1.5,3515.9,3515.7,1.32271656]
[1641428616249,0.229991,3515.8,3515.7,1.32271656]
[1641428616448,2.00479,3516.6,3515.7,1.32271656]
[1641428616649,3.50479,3515.8,3515.7,1.32271656]
[1641428616851,2.00479,3515.8,3515.7,1.32271656]
[1641428617051,1.5,3516.4,3515.7,1.32271656]
[1641428617250,2.00479,3516.6,3515.7,1.32271656]
[1641428617451,2.00479,3516.6,3515.7,2.74378677]
[1641428617750,3.50479,3516.6,3515.7,1.32271656]
[1641428618652,3.50479,3516.6,3515.7,3.32750656]
[1641428619052,1.5,3516.3,3515.7,3.32750656]
[1641428619253,2.00479,3516.6,3515.7,4.74857273]
[1641428619454,1.5,3516.0,3515.7,4.74857273]
[1641428619655,1.5,3516.0,3515.7,3.32750656]
[1641428620153,1.729991,3515.9,3515.7,3.32750656]
[1641428620354,1.5,3515.9,3515.7,3.32750656]
[1641428620554,1.5,3515.9,3515.7,1.32271656]
[1641428620754,2.00479,3515.8,3515.7,1.32271656]
[1641428621258,2.234781,3515.8,3515.7,1.32271656]
[1641428622657,2.367175,3515.8,3515.7,1.32271656]
[1641428623458,2.234781,3515.8,3515.7,1.32271656]
[1641428623655,2.00479,3515.8,3515.7,1.32271656]
[1641428624860,14.324781,3515.8,3515.7,1.32271656]
[1641428626359,14.09479,3515.8,3515.7,1.32271656]
[1641428626560,14.457175,3515.8,3515.7,0.36841656]
[1641428627160,14.227184,3515.8,3515.7,0.36841656]
[1641428627362,14.457175,3515.8,3515.7,0.36841656]
[1641428628761,14.227184,3515.8,3515.7,0.36841656]
[1641428629360,14.457175,3515.8,3515.7,0.36841656]
[1641428631065,15.05986188,3515.8,3515.7,1.5784732]
[1641428631862,15.05986188,3515.8,3515.7,1.31738689]
[1641428632064,15.05986188,3515.8,3515.7,0.36841656]
[1641428633662,15.05986188,3515.8,3515.5,0.94897033]
[1641428633863,15.09,3515.6,3515.5,0.94897033]
[1641428634063,15.452385,3515.6,3515.5,0.94897033]
[1641428634261,15.452385,3515.6,3515.3,1.26527383]
[1641428634463,1.5,3515.4,3515.3,1.26527383]
[1641428634861,1.632394,3515.4,3515.3,1.26527383]
[1641428635064,15.957175,3515.4,3515.3,1.26527383]
[1641428635462,17.457175,3515.4,3515.3,1.26527383]
[1641428635662,15.957175,3515.4,3515.3,1.26527383]
[1641428635962,15.957175,3515.4,3514.8,1.26527383]
[1641428636462,15.09,3514.9,3514.8,1.26527383]
[1641428636662,15.452385,3514.9,3514.8,1.26527383]
[1641428636862,13.952385,3514.9,3514.8,1.26527383]
[1641428637063,15.957175,3514.9,3514.8,1.26527383]
[1641428637662,15.957175,3514.9,3514.1,1.03647404]
[1641428637863,14.457175,3514.9,3514.1,1.03647404]
[1641428638062,14.457175,3514.9,3513.8,1.26527383]
[1641428638063,1.5,3514.7,3514.2,0.96479263]
[1641428638261,14.457175,3514.9,3514.2,0.96479263]
[1641428638262,1.5,3514.3,3514.2,0.96479263]
[1641428638462,1.5,3514.5,3513.9,0.96479263]
[1641428638662,14.09479,3514.9,3513.8,1.26527383]
[1641428638663,14.09479,3514.9,3514.2,2.03853139]
[1641428638862,1.5,3514.5,3514.2,1.07373876]
[1641428639063,2.00479,3514.3,3514.2,1.07373876]
[1641428639866,2.00479,3514.9,3514.2,1.07373876]
[1641428640366,1.5,3514.9,3514.2,1.07373876]
[1641428640763,1.5,3515.3,3514.2,2.49543931]
[1641428640963,0.91860964,3515.7,3514.2,2.49543931]
[1641428641163,2.00479,3515.5,3514.7,2.00479]
[1641428641364,1.5,3514.8,3514.7,2.00479]
[1641428641562,14.09479,3515.5,3514.7,2.00479]
[1641428641763,2.00479,3515.5,3514.7,2.00479]
[1641428641964,0.91860964,3515.7,3514.7,2.00479]
[1641428642165,0.91860964,3515.7,3514.7,3.42628038]
[1641428642564,1.5,3515.1,3514.7,3.42628038]
[1641428642765,2.00479,3515.8,3514.7,3.42628038]
[1641428642968,1.5,3515.1,3514.7,3.42628038]
[1641428643165,3.50479,3515.8,3514.7,3.42628038]
[1641428643966,1.5,3515.7,3514.7,3.42628038]
[1641428644268,1.5,3515.1,3514.7,2.00479]
[1641428644467,1.5,3514.8,3514.2,3.76069697]
[1641428644766,1.5,3514.5,3514.2,3.76069697]
[1641428645068,2.00479,3514.8,3514.2,3.76069697]
[1641428645267,0.132394,3514.7,3514.2,1.07373876]
[1641428646067,2.00479,3514.8,3514.2,1.07373876]
[1641428648471,0.91860964,3515.7,3514.4,1.42161769]
[1641428649072,0.91860964,3515.7,3515.1,2.00479]
[1641428649472,0.91860964,3515.7,3515.2,1.11866329]
[1641428650373,3.50479,3515.8,3515.2,1.11866329]
[1641428650574,2.00479,3515.8,3515.2,1.11866329]
[1641428650773,1.5,3515.6,3515.2,1.11866329]
[1641428650974,12.09,3515.7,3515.2,1.11866329]
[1641428651174,1.5,3515.3,3515.2,1.11866329]
[1641428651577,1.5,3515.8,3515.2,1.11866329]
[1641428651775,0.91860964,3516.1,3515.2,1.11866329]
[1641428652175,0.91860964,3516.0,3515.6,1.42113483]
[1641428652576,1.22481285,3516.3,3515.9,1.42094299]
[1641428652978,1.22481285,3516.3,3516.0,0.74646837]
[1641428653176,1.22481285,3516.3,3516.2,2.00479]
[1641428654078,1.5,3516.7,3516.2,2.00479]
[1641428654276,1.5,3516.7,3516.2,2.96919996]
[1641428654478,0.60262851,3516.8,3516.3,0.96440996]
[1641428655782,1.5,3516.7,3516.3,0.96440996]
[1641428656380,1.22481285,3516.9,3516.3,0.96440996]
[1641428656581,1.22481285,3516.9,3516.4,1.42081984]
[1641428657080,1.82330082,3517.4,3516.8,3.42540396]
[1641428657281,1.82330082,3517.6,3517.3,1.42041823]
[1641428657480,2.31370214,3517.8,3517.4,1.27744978]
[1641428657681,3.08141553,3518.1,3517.4,1.27744978]
[1641428657880,3.85215766,3518.3,3517.5,0.96440996]
[1641428658081,3.85215766,3518.3,3517.5,1.85596082]
[1641428658481,3.85215766,3518.3,3517.6,0.96440996]
[1641428659082,3.85215766,3518.3,3518.2,2.00479]
[1641428659283,4.24364392,3518.6,3518.2,2.00479]
[1641428659481,51.03381876,3519.5,3518.2,2.00479]
[1641428659482,1.5,3518.8,3518.2,2.87235399]
[1641428659885,1.5,3518.7,3518.2,2.87235399]
[1641428660182,1.5,3518.8,3518.2,2.87235399]
[1641428660384,1.5,3518.8,3518.2,4.29241116]
[1641428660582,50.17476206,3519.5,3518.2,4.29241116]
[1641428660986,1.5,3518.4,3518.2,4.29241116]
[1641428661184,0.60240621,3518.7,3518.2,4.29241116]
[1641428661585,0.8033144,3519.4,3518.6,2.50736387]
[1641428661788,0.8033144,3519.4,3519.0,1.5]
[1641428662488,2.28653802,3520.0,3519.3,1.5]
[1641428662689,2.28653802,3520.0,3519.3,2.91964994]
[1641428662888,2.28653802,3520.0,3519.3,1.41964994]
[1641428663088,2.28653802,3520.0,3519.1,1.06703125]
[1641428663292,2.28653802,3520.0,3519.9,2.00479]
[1641428663487,2.51652902,3520.0,3519.9,3.41009205]
[1641428663988,0.362385,3520.0,3519.9,1.40530205]
[1641428664188,0.362385,3520.0,3518.7,1.5]
[1641428664388,0.362385,3520.0,3519.3,1.5]
[1641428664587,0.362385,3520.0,3518.4,2.64441735]
[1641428664786,6.13869568,3520.6,3518.7,1.5]
[1641428665189,2.00479,3520.1,3519.5,1.5]
[1641428665588,2.00479,3520.1,3519.3,3.4243815]
[1641428666389,2.00479,3520.1,3519.3,2.00479]
[1641428666589,2.00479,3520.1,3519.4,0.85412287]
[1641428667589,3.84411549,3520.1,3519.4,0.85412287]
[1641428668693,2.29946945,3519.6,3519.4,0.85412287]
[1641428670095,2.52946045,3519.5,3519.4,0.85412287]
[1641428670295,15.88946945,3519.5,3517.8,1.34720583]
[1641428670493,1.5,3518.9,3518.2,2.71323546]
[1641428670693,0.132394,3518.8,3518.2,2.71323546]
[1641428670892,0.229991,3518.7,3518.2,2.71323546]
[1641428671094,0.132394,3518.6,3518.2,1.13157691]
[1641428671295,0.132394,3518.6,3518.3,2.00479]
[1641428671901,0.229991,3518.5,3518.3,2.00479]
[1641428672502,1.5,3518.9,3518.3,2.00479]
[1641428673003,0.132394,3518.8,3518.3,2.00479]
[1641428673201,2.30762903,3518.4,3518.3,2.00479]
[1641428673401,2.53762003,3518.4,3518.3,2.00479]
[1641428673601,2.67001403,3518.4,3518.3,2.00479]
[1641428674102,0.132394,3518.4,3518.3,2.00479]
[1641428674302,0.362385,3518.4,3518.3,2.00479]
[1641428676703,3.07683871,3518.5,3518.3,2.00479]
[1641428676903,3.85215766,3518.9,3518.3,2.00479]
[1641428677304,3.85215766,3518.9,3518.8,2.00479]
[1641428678104,4.08214866,3518.9,3518.8,2.97181866]
[1641428678304,0.132394,3519.2,3518.8,2.97181866]
[1641428678305,12.27954325,3521.3,3518.8,4.47181866]
[1641428678505,5.54186144,3519.7,3518.8,2.97181866]
[1641428678704,0.91243171,3519.7,3518.9,0.85252229]
[1641428678905,0.132394,3519.6,3518.9,0.85252229]